[Event "58th Akiba Rubinstein D 2022"]
[Site "Polanica-Zdroj"]
[Date "2022.08.13"]
[Round "1.1"]
[White "Sleczka, Krzysztof"]
[Black "Galuszka, Kamil"]
[Result "1-0"]
[ECO "C00"]
[WhiteElo "1443"]
[BlackElo "1976"]
[Annotator "TA"]
[PlyCount "47"]
[EventDate "2022.08.13"]
[EventCountry "POL"]
[SourceTitle "playchess.com"]
[Source "ChessBase"]
[SourceQuality "1"]
[TimeControl "40/5400+30:1800+30"]

{[%evp 10,47,-17,-13,20,12,42,0,0,0,0,0,0,0,0,0,0,-17,24,0,32,7,7,5,8,12,6,4,14,9,4,8,150,148,148,142,504,520,502,460]} 1. e4 {[%emt 0:00:03]} e6 {[%emt 0:00:02]} 2. d4 {[%emt 0:00:06]} d5 {[%emt 0:00:01]} 3. Bd3 {[%emt 0:00:43][%cal Bf1d3,Bd3e4,Be4f3][%mdl 32]} dxe4 {[%emt 0:00:50]} 4. Bxe4 {[%emt 0:00:01]} Nf6 {[%emt 0:00:50]} 5. Bf3 {[%emt 0:00:02]} c5 {[%emt 0:01:04]} 6. Ne2 {[%emt 0:03:38]} Qb6 {[%emt 0:06:05] C01: French: Exchange Variation.} 7. O-O {[%emt 0:12:12]} (7. Be3 {with more complications.} Be7 8. dxc5 Bxc5 9. Bxc5 Qxc5 10. Qd4) 7... Bd7 {[%emt 0:07:05]} 8. c4 {[%emt 0:06:30]} cxd4 {[%emt 0:04:43] The position is equal.} 9. Nxd4 {[%emt 0:02:14]} Nc6 {[%emt 0:07:27]} 10. Nxc6 {[%emt 0:03:58]} Bxc6 {[%emt 0:00:05] [#]} 11. Bxc6+ $146 {[%emt 0:03:45]} ({Predecessor:} 11. Nc3 Rd8 12. Bxc6+ Qxc6 13. Qa4 Bc5 14. Bg5 Qxa4 15. Nxa4 Bd4 16. Rac1 {1-0 (62) Pinter,E (2389)-Zurek,M (2388) Czech Republic 2008}) 11... Qxc6 {[%emt 0:00:02]} 12. Qe2 {[%emt 0:00:23]} Rd8 {[%emt 0:06:23]} 13. Nc3 {[%emt 0:07:01]} Rd4 {[%emt 0:05:35]} 14. b3 {[%emt 0:20:18]} Bc5 {[%emt 0:08:48]} 15. h3 {[%emt 0:06:06]} (15. Be3 $5 {[%cal Re3d4]}) 15... O-O {[%emt 0:07:59]} 16. Be3 {[%emt 0:02:23] Na4 is the strong threat.} Rd7 {[%emt 0:00:13]} 17. Rad1 {[%emt 0:06:45]} Rfd8 {[%emt 0:03:38]} 18. Rxd7 {[%emt 0:02:26]} Rxd7 {[%emt 0:00:02]} 19. Bxc5 {[%emt 0:01:10]} Qxc5 {[%emt 0:00:02]} 20. Rd1 {[%emt 0:00:39]} g5 {[%emt 0:06:08]} (20... Rxd1+ $11 {remains equal.} 21. Qxd1 h5) 21. Rxd7 $16 {[%emt 0:03:44]} Nxd7 {[%emt 0:00:44] [#]} 22. Qd2 $1 {[%emt 0:00:20]} Nf6 {[%emt 0:00:19][%mdl 8192] [#]} (22... Nf8 $16 {is more resistant.}) 23. Qd8+ $1 $18 {[%emt 0:00:38]} Kg7 {[%emt 0:00:24] [#]} 24. Qxf6+ $3 {[%emt 0:00:38][%mdl 512] Weighted Error Value: White=0.05 (flawless) /Black=0.73} 1-0

[Event "58th Akiba Rubinstein D 2022"]
[Site "Polanica-Zdroj"]
[Date "2022.08.13"]
[Round "1.2"]
[White "Zerebiec, Maurycy"]
[Black "Pieczulis, Hubert"]
[Result "1/2-1/2"]
[ECO "A13"]
[WhiteElo "1915"]
[BlackElo "1472"]
[Annotator "TA"]
[PlyCount "81"]
[EventDate "2022.08.13"]
[EventCountry "POL"]
[SourceTitle "playchess.com"]
[Source "ChessBase"]
[SourceQuality "1"]
[TimeControl "40/5400+30:1800+30"]

{[%evp 12,81,22,12,18,8,19,19,37,28,76,43,75,75,98,87,245,224,215,204,164,88,88,31,93,42,32,51,70,77,72,0,0,0,299,294,272,245,311,130,158,164,135,102,83,80,87,87,80,80,131,58,217,56,50,0,0,-614,-596,-566,-519,-658,-652,-647,-620,-600,-577,-541,0,-487,0,-764]} 1. c4 {[%emt 0:00:02]} e6 {[%emt 0:00:18]} 2. e4 {[%emt 0:00:11]} c5 {[%emt 0:00:57]} 3. Nc3 {[%emt 0:00:02]} Nc6 {[%emt 0:00:18]} 4. g3 {[%emt 0:00:02]} Be7 {[%emt 0:01:55]} 5. Bg2 {[%emt 0:00:05]} d6 {[%emt 0:01:03]} 6. Nge2 {[%emt 0:00:10]} Nf6 {[%emt 0:00:45]} 7. O-O {[%emt 0:00:09]} e5 {[%emt 0:01:47] A36: Symmetrical English vs ...g6: 4 Bg2 Bg7.} 8. h3 {[%emt 0:00:22]} Be6 {[%emt 0:01:38]} 9. d3 {[%emt 0:00:02]} (9. Nd5 {looks sharper.} a6 10. f4 b5 11. d3) 9... Qd7 {[%emt 0:01:44]} 10. Kh2 {[%emt 0:00:17]} O-O-O {[%emt 0:02:43]} (10... Qd8 $11 {is superior.}) 11. a3 {[%emt 0:00:32][%cal Ob2b4]} h5 {[%emt 0:00:43][%cal Og7g5]} 12. f4 {[%emt 0:01:05]} g6 {[%emt 0:00:30] [#] Inhibits f5.} 13. Nd5 $146 {[%emt 0:03:13]} ({Predecessor:} 13. Rb1 Nd4 14. fxe5 dxe5 15. Nd5 Bxd5 16. cxd5 Kb8 17. b4 h4 18. g4 cxb4 19. Nxd4 exd4 {0-1 (36) Alvarado Rodriguez,D (2105)-Ugalde Garcia,R (2165) San Jose 2004}) 13... Bxd5 $2 {[%emt 0:02:15]} (13... exf4 $16 14. Bxf4 g5) 14. cxd5 $18 {[%emt 0:01:00]} ({Much less strong is} 14. exd5 $6 Nd4 15. fxe5 dxe5 16. Nxd4 cxd4) 14... Nd4 {[%emt 0:01:14]} 15. fxe5 {[%emt 0:02:43]} dxe5 {[%emt 0:00:16]} 16. Nxd4 {[%emt 0:00:35]} (16. b4 $18) 16... cxd4 $16 {[%emt 0:00:40]} 17. Bd2 {[%emt 0:00:44]} (17. Rf2 $1 $16) 17... Kb8 {[%emt 0:05:49] [#]} (17... Rdf8 $1 $14) 18. Bb4 {[%emt 0:08:38]} (18. Rf2 $1 $16) 18... Bxb4 $14 {[%emt 0:01:22]} 19. Rxf6 {[%emt 0:00:18]} Bf8 {[%emt 0:01:14]} 20. Qf3 $36 {[%emt 0:00:54][%mdl 2048] White is in control.} h4 {[%emt 0:01:02]} 21. g4 {[%emt 0:03:28]} (21. gxh4 $16 Bh6 22. Rxf7) 21... Bh6 $11 {[%emt 0:00:31]} 22. Rxf7 {[%emt 0:00:58]} Bf4+ $2 {[%emt 0:00:13][%mdl 8192]} (22... Qb5 $11 {and Black stays safe.}) 23. Rxf4 $18 {[%emt 0:00:02]} exf4 {[%emt 0:00:07]} 24. Qxf4+ {[%emt 0:00:06]} Ka8 {[%emt 0:00:47]} 25. Rf1 {[%emt 0:00:25]} (25. e5 $18 {and the rest is easy.}) 25... Qb5 {[%emt 0:00:22] [#]} 26. e5 $1 {[%emt 0:08:26][%cal Be4e5,Be5e6][%mdl 32]} Qxd3 {[%emt 0:01:58]} 27. e6 {[%emt 0:02:02] Strongly threatening e7.} Rhe8 {[%emt 0:03:25][%cal Og6g5]} 28. Qe5 {[%emt 0:16:48]} Qe3 29. Qxe3 {[%emt 0:16:50]} dxe3 $16 {[%emt 0:01:51][%mdl 4096] Endgame KRR-KRB} 30. Be4 {[%emt 0:00:16]} Kb8 {[%emt 0:02:15]} (30... g5 $142) 31. Kg2 {[%emt 0:01:29] White is more active.} (31. Bxg6 $16 Re7 32. Be4) 31... Kc7 $2 {[%emt 0:00:16]} (31... e2 $1 $14 32. Re1 g5) 32. Rf7+ $2 {[%emt 0:01:31]} (32. Bxg6 $18 e2 33. Rc1+ Kd6 34. Bxe8) 32... Kd6 $14 {[%emt 0:00:52]} 33. Kf3 {[%emt 0:03:40]} ({Better is} 33. Bxg6 $14 Re7 34. Rf3 (34. Kf3 Rxf7+ 35. exf7 Kxd5 $15)) 33... Rf8 $11 {[%emt 0:01:28] aiming for ...Rxf7+.} 34. Rxf8 {[%emt 0:02:54][%mdl 8192]} (34. Bxg6 $11 Rxf7+ 35. exf7) 34... Rxf8+ $19 {[%emt 0:00:07]} 35. Kxe3 $11 {[%emt 0:00:03] KR-KB} g5 {[%emt 0:00:24] Hoping for ...Rf1.} 36. Bg2 {[%emt 0:07:21]} Rf4 {[%emt 0:01:26]} 37. Bf3 {[%emt 0:01:03]} b6 {[%emt 0:01:12]} 38. Bg2 {[%emt 0:00:13]} Rf6 {[%emt 0:00:26]} 39. Bf3 {[%emt 0:00:16]} Rf4 {[%emt 0:00:07]} 40. Bg2 $1 {[%emt 0:00:08]} Rf6 {[%emt 0:00:22]} ({Black should play} 40... b5 $19 41. b4 Rc4) 41. Ke4 $2 {[%mdl 40960] Weighted Error Value: White=0.50/Black=0.70. An unexpected result.} (41. Bf3 $11) 1/2-1/2

[Event "58th Akiba Rubinstein D 2022"]
[Site "Polanica-Zdroj"]
[Date "2022.08.13"]
[Round "1.3"]
[White "Karalchuk, Aliaksei"]
[Black "Lewandrowski, Tomasz"]
[Result "1/2-1/2"]
[ECO "D00"]
[WhiteElo "1468"]
[BlackElo "1902"]
[Annotator "TA"]
[PlyCount "129"]
[EventDate "2022.08.13"]
[EventCountry "POL"]
[SourceTitle "playchess.com"]
[Source "ChessBase"]
[SourceQuality "1"]
[TimeControl "40/5400+30:1800+30"]

{[%evp 10,129,13,0,9,0,17,12,39,0,9,-14,41,29,41,14,56,0,33,-23,-41,-7,0,-26,-44,-33,0,8,32,-41,-57,-88,0,0,16,0,-8,0,37,35,52,60,302,299,365,367,485,485,457,399,476,429,445,73,73,73,109,108,154,154,154,154,154,154,259,142,594,594,539,584,29988,601,587,594,594,597,1485,602,602,594,594,594,594,594,552,380,380,253,594,594,589,587,582,572,572,571,559,423,436,418,371,361,429,429,429,429,429,417,320,313,308,293,256,249,249,145,193,192,157,0,145,145]} 1. d4 {[%emt 0:05:38]} d5 {[%emt 0:00:01]} 2. Bf4 {[%emt 0:01:04]} Nf6 {[%emt 0:01:12]} 3. e3 {[%emt 0:00:18]} c5 {[%emt 0:03:50]} 4. Nf3 {[%emt 0:01:57]} e6 {[%emt 0:01:38]} 5. c3 {[%emt 0:00:52]} Be7 {[%emt 0:07:48]} 6. Nbd2 {[%emt 0:03:56]} O-O {[%emt 0:01:05] D02: 1 d4 d5 2 Nf3 sidelines, including 2...Nf6 3 g3 and 2...Nf6 3 Bf4.} 7. Bd3 {[%emt 0:03:42]} b6 {[%emt 0:01:09]} 8. Ne5 {[%emt 0:01:53]} Bb7 {[%emt 0:02:38] The position is equal.} 9. h4 {[%emt 0:07:36]} Ne4 {[%emt 0:06:59]} 10. Qc2 {[%emt 0:08:10][%cal Rd2e4] [#]} f5 $146 {[%emt 0:05:00]} (10... f6 $11 11. Nef3 (11. Nxe4 dxe4 12. Bxe4 Bxe4 $15) 11... f5) ({Predecessor:} 10... f6 11. Nef3 f5 12. g4 Nd7 13. gxf5 exf5 14. Ng5 Bxg5 15. hxg5 cxd4 16. exd4 g6 {1-0 (30) Pitschka,C (2176)-Fuchs,G (2195) Bayern 2020}) 11. Ndf3 $14 {[%emt 0:22:19]} Nc6 {[%emt 0:02:32][%cal Bb8c6,Bc6b4,Bb4d3][%mdl 32]} 12. O-O-O {[%emt 0:01:56]} cxd4 {[%emt 0:04:38]} 13. exd4 {[%emt 0:01:21]} Nb4 $1 {[%emt 0:03:08]} 14. Qb3 {[%emt 0:07:44]} (14. cxb4 $2 Rc8 15. Rdf1 (15. Bxe4 $2 fxe4 16. g3 Rxc2+ 17. Kxc2 exf3 $19) 15... Rxc2+ 16. Kxc2 Bxb4 $19) ({Better is} 14. Qa4 $1 $14) 14... Nxd3+ $11 {[%emt 0:00:41]} 15. Nxd3 {[%emt 0:00:21]} a5 {[%emt 0:06:13] aiming for ...a4.} 16. a3 {[%emt 0:05:07]} Ba6 {[%emt 0:01:45]} 17. Nfe5 {[%emt 0:08:12]} Rc8 {[%emt 0:01:25]} 18. f3 {[%emt 0:01:51]} Nd6 {[%emt 0:01:08]} 19. Rd2 {[%emt 0:07:55]} (19. h5 $14) 19... Nc4 $15 {[%emt 0:06:51]} 20. Rf2 {[%emt 0:01:54]} Bxh4 {[%emt 0:04:57]} (20... b5 $17 {Hoping for ...b4.} 21. Bg5 b4 22. Bxe7 Qxe7 23. axb4 Nxe5 24. Nxe5 axb4) 21. g3 $11 {[%emt 0:00:18]} Bf6 {[%emt 0:03:12]} 22. Qc2 {[%emt 0:00:18]} g5 {[%emt 0:12:14]} 23. Rfh2 {[%emt 0:03:35][%cal Oh2h7]} Rc7 {[%emt 0:05:03]} 24. Nxc4 {[%emt 0:00:20] Pair of Knights!} gxf4 {[%emt 0:00:40]} (24... Rxc4 $2 {[#]} 25. Rxh7 $1 gxf4 26. Nxf4 $18) 25. Nxf4 {[%emt 0:02:25]} Bg5 $2 {[%emt 0:01:41]} (25... Rxc4 26. Rxh7 Qc8 27. Qh2 Rxc3+ 28. Kb1 (28. bxc3 Qxc3+ 29. Kb1 Qb3+ 30. Qb2 Qxf3 $17) 28... Bd3+ 29. Nxd3 Rxd3 30. Qh5 Rd1+ 31. Rxd1 $18) (25... dxc4 $2 26. Nxe6 Qe7 27. Nxc7 Qxc7 28. Rxh7 $18 (28. Qxf5 Rf7 $16)) (25... Bxc4 $14 26. Nxe6 Qc8 27. Nxc7 Rf7) 26. Ne5 $18 {[%emt 0:00:32]} (26. Nxb6 Bb5 $16) 26... Re8 {[%emt 0:06:15]} 27. Kb1 {[%emt 0:00:41]} Bxf4 {[%emt 0:01:57]} 28. gxf4 {[%emt 0:00:06] [#] Intending Qg2+ and mate.} Ree7 {[%emt 0:00:10]} 29. Rh6 {[%emt 0:00:56]} ({Weaker is} 29. Qf2 Rg7 30. Rh5 Kf8 $16) 29... Qe8 {[%emt 0:00:52]} 30. Qh2 {[%emt 0:00:42]} Rg7 {[%emt 0:01:08] Prevents Rg6.} 31. Rg6 $2 {[%emt 0:00:34]} Rxg6 $16 {[%emt 0:01:33]} 32. Nxg6 {[%emt 0:00:15]} Rg7 {[%emt 0:00:10]} ({Not} 32... Qxg6 33. Rg1 $16) (32... hxg6 $2 {gets mated.} 33. Qh8+ Kf7 34. Rh7#) 33. Ne5 {[%emt 0:00:36]} b5 {[%emt 0:01:34]} ({Black should try} 33... Qe7) 34. Nd3 {[%emt 0:01:42]} Bc8 {[%emt 0:00:56]} 35. Nc5 Qg6 {[%emt 0:01:04]} 36. Qh4 {[%emt 0:00:43] White is more active.} Kh8 {[%emt 0:01:56]} (36... Qe8 $16 {was worth a try.} 37. Qe1 Qc6) 37. Nd3 {[%emt 0:00:47]} ({Only move:} 37. Qd8+ $18 Rg8 38. Qxa5) 37... Rg8 $2 {[%emt 0:00:47][%mdl 8192]} (37... Qe8 $16 38. Nc5 Qe7) 38. Ne5 $18 {[%emt 0:00:29]} Qg7 {[%emt 0:00:01]} 39. Qh5 {[%emt 0:00:16] White wants to mate with Nf7+.} Qc7 {[%emt 0:02:58]} 40. Ng6+ {[%emt 0:00:28]} (40. Nf7+ $142 Kg7 41. Rg1+ Kf8 42. Qh6+ Rg7 43. Qxg7+ Ke8 44. Qg8+ Kd7 45. Ne5+ Qxe5 46. fxe5) 40... Rxg6 {[%emt 0:00:15]} 41. Qxg6 {[%emt 0:30:06][%mdl 4096] Endgame Threatening mate with Qe8+. KQR-KQB} Qe7 {[%emt 0:30:46] Against Qe8+} 42. Qg5 {[%emt 0:01:04]} Qf8 {[%emt 0:00:56]} 43. Rh6 {[%emt 0:00:43]} (43. Qh4 $142 Qg7 44. Qd8+ Qg8 45. Qc7) 43... Bd7 {[%emt 0:00:01]} 44. Qh4 {[%emt 0:00:18]} Qf7 {[%emt 0:00:58]} 45. Qd8+ {[%emt 0:00:20]} Kg7 {[%emt 0:00:01]} 46. Qg5+ {[%emt 0:00:08]} Kh8 {[%emt 0:00:33]} 47. Qh5 {[%emt 0:01:19]} Qxh5 {[%emt 0:01:03]} 48. Rxh5 {[%emt 0:00:06] KR-KB} a4 $2 {[%emt 0:00:08]} (48... Kg7 {is a better chance.} 49. Kc2 a4) 49. Kc2 {[%emt 0:00:10]} Be8 {[%emt 0:00:22]} 50. Rh2 {[%emt 0:00:12]} Kg7 {[%emt 0:00:01]} 51. b3 {[%emt 0:00:15]} Bd7 {[%emt 0:01:01]} 52. Rg2+ {[%emt 0:00:31]} Kf7 {[%emt 0:00:04]} 53. Kd3 {[%emt 0:01:15]} Bc6 {[%emt 0:00:42]} 54. c4 {[%emt 0:00:06]} dxc4+ {[%emt 0:00:49]} 55. bxc4 {[%emt 0:00:06]} bxc4+ {[%emt 0:00:06]} 56. Kxc4 {[%emt 0:00:05]} Bxf3 {[%emt 0:00:10]} 57. Rf2 {[%emt 0:00:23]} Bd5+ {[%emt 0:00:01]} 58. Kb5 {[%emt 0:00:06]} Bb3 {[%emt 0:00:07]} 59. Rg2 {[%emt 0:00:53]} Kf6 {[%emt 0:01:39]} 60. Kc5 {[%emt 0:00:17]} Bd5 {[%emt 0:00:11]} 61. Rg3 {[%emt 0:00:26]} h6 {[%emt 0:00:53]} 62. Kd6 {[%emt 0:01:03]} (62. Rh3 $18 Kg6 63. Kb5) 62... Bb3 {[%emt 0:00:24]} (62... Kf7 $16 63. Ke5 Bc4) 63. Rg8 {[%emt 0:00:48]} Bd5 {[%emt 0:00:28]} 64. Rg3 {[%emt 0:01:31]} Bb3 $1 {[%emt 0:00:09]} 65. Rg1 {[%emt 0:00:24] Weighted Error Value: White=0.54/Black=0.50} 1/2-1/2

[Event "58th Akiba Rubinstein D 2022"]
[Site "Polanica-Zdroj"]
[Date "2022.08.13"]
[Round "1.4"]
[White "Owoc, Jakub"]
[Black "Durzynski, Jan"]
[Result "1-0"]
[ECO "D37"]
[WhiteElo "1756"]
[BlackElo "1406"]
[Annotator "NA RC COMBH"]
[PlyCount "111"]
[EventDate "2022.08.13"]
[EventCountry "POL"]
[SourceTitle "playchess.com"]
[Source "ChessBase"]
[SourceQuality "1"]
[TimeControl "40/5400+30:1800+30"]

1. Nf3 {[%emt 0:00:02]} d5 {[%emt 0:00:11]} 2. d4 {[%emt 0:00:13]} Nf6 {[%emt 0:00:24]} 3. c4 {[%emt 0:00:08]} e6 {[%emt 0:00:19]} 4. Nc3 {[%emt 0:00:07]} Be7 {[%emt 0:00:23]} 5. Bf4 {[%emt 0:00:11]} O-O {[%emt 0:00:37]} 6. e3 {[%emt 0:00:05]} b6 {[%emt 0:01:41]} 7. cxd5 {[%emt 0:02:59]} exd5 {[%emt 0:00:23]} 8. Bd3 {[%emt 0:00:10]} Bb7 {[%emt 0:02:01]} 9. O-O {[%emt 0:02:45]} Nbd7 {[%emt 0:01:30]} 10. Rc1 {[%emt 0:01:40]} c5 {[%emt 0:01:06]} 11. Re1 {[%emt 0:01:01]} Rc8 {[%emt 0:02:58]} 12. Qe2 {[%emt 0:10:27]} c4 {[%emt 0:12:08]} 13. Bb1 {[%emt 0:00:33]} Ne4 {[%emt 0:06:18]} 14. Nxe4 {[%emt 0:26:29]} dxe4 {[%emt 0:00:09]} 15. Nd2 {[%emt 0:00:03]} Bb4 {[%emt 0:01:06]} 16. Red1 {[%emt 0:00:41]} Bxd2 {[%emt 0:01:27]} 17. Rxd2 {[%emt 0:00:51]} Bd5 {[%emt 0:04:36]} 18. f3 {[%emt 0:06:29]} f5 {[%emt 0:04:00]} 19. fxe4 {[%emt 0:01:37]} fxe4 {[%emt 0:00:09]} 20. Qg4 {[%emt 0:03:21]} Nf6 {[%emt 0:05:10]} 21. Qh4 {[%emt 0:00:33]} Qe7 {[%emt 0:28:08]} 22. Rf2 {[%emt 0:02:40]} b5 {[%emt 0:05:56]} 23. Be5 {[%emt 0:02:08]} Rc6 {[%emt 0:01:32]} 24. Qg5 {[%emt 0:02:37]} Qd7 {[%emt 0:08:04]} 25. Rcf1 {[%emt 0:00:39]} h6 {[%emt 0:00:20]} 26. Qh4 {[%emt 0:00:35]} Qe7 {[%emt 0:00:40]} 27. Rf5 {[%emt 0:00:38]} b4 {[%emt 0:01:13]} 28. R5f2 {[%emt 0:10:32]} c3 {[%emt 0:01:10]} 29. bxc3 {[%emt 0:00:04]} bxc3 {[%emt 0:00:05]} 30. Rc1 {[%emt 0:04:56]} Qa3 {[%emt 0:03:25]} 31. Rfc2 {[%emt 0:01:03]} Nd7 {[%emt 0:01:45]} 32. Bxg7 {[%emt 0:01:36]} Rf7 {[%emt 0:02:22]} 33. Bxh6 {[%emt 0:00:26]} Bc4 {[%emt 0:00:32]} 34. Qxe4 {[%emt 0:03:13]} Rxh6 {[%emt 0:00:14]} 35. Rxc3 {[%emt 0:00:03]} Qb2 {[%emt 0:01:29]} 36. R3c2 {[%emt 0:01:25]} Qb8 {[%emt 0:00:35]} 37. g3 {[%emt 0:00:43]} Ba6 {[%emt 0:00:30]} 38. a4 {[%emt 0:02:27]} Kh8 {[%emt 0:02:34]} 39. Ba2 {[%emt 0:03:06]} Rfh7 {[%emt 0:00:40]} 40. Qg4 {[%emt 0:02:59]} Qe8 {[%emt 0:00:45]} 41. Re1 {[%emt 0:31:51]} Bd3 {[%emt 0:30:19]} 42. Rf2 {[%emt 0:00:48]} Nf6 {[%emt 0:00:15]} 43. Qf4 {[%emt 0:00:45]} Qxa4 {[%emt 0:00:45]} 44. Qb8+ {[%emt 0:00:57]} Kg7 {[%emt 0:00:06]} 45. Bb3 {[%emt 0:01:33]} Qd7 {[%emt 0:00:12]} 46. Rc1 {[%emt 0:00:29]} Kg6 {[%emt 0:00:31]} 47. Qe5 {[%emt 0:00:57]} Bf5 {[%emt 0:01:03]} 48. Rxf5 {[%emt 0:02:34]} Qxf5 49. Bc2 {[%emt 0:00:04]} Rh5 {[%emt 0:01:27]} 50. Bxf5+ {[%emt 0:01:28]} Rxf5 {[%emt 0:00:04]} 51. Qb8 {[%emt 0:00:15]} Kg5 {[%emt 0:00:51]} 52. e4 {[%emt 0:00:27]} Nxe4 {[%emt 0:00:15]} 53. Qg8+ {[%emt 0:00:04]} Kh6 {[%emt 0:00:01]} 54. Qg4 {[%emt 0:00:15]} Nd6 {[%emt 0:00:26]} 55. Rc6 {[%emt 0:00:11]} Rf6 {[%emt 0:00:28]} 56. Rxd6 {[%emt 0:00:05]} 1-0

[Event "58th Akiba Rubinstein D 2022"]
[Site "Polanica-Zdroj"]
[Date "2022.08.13"]
[Round "1.6"]
[White "Penza, Denis"]
[Black "Perucki, Maciej"]
[Result "1-0"]
[ECO "D55"]
[WhiteElo "1836"]
[BlackElo "1449"]
[Annotator "NA RC COMBH"]
[PlyCount "123"]
[EventDate "2022.08.13"]
[EventCountry "POL"]
[SourceTitle "playchess.com"]
[Source "ChessBase"]
[SourceQuality "1"]
[TimeControl "40/5400+30:1800+30"]

1. d4 {[%emt 0:00:11]} d5 {[%emt 0:00:05]} 2. c4 {[%emt 0:00:08]} e6 {[%emt 0:00:03]} 3. Nc3 {[%emt 0:00:11]} Nf6 {[%emt 0:00:05]} 4. Bg5 {[%emt 0:00:09]} Be7 {[%emt 0:00:05]} 5. e3 {[%emt 0:00:24]} O-O {[%emt 0:00:08]} 6. Nf3 {[%emt 0:00:13]} c6 {[%emt 0:00:15]} 7. Qc2 {[%emt 0:00:50]} h6 {[%emt 0:00:22]} 8. Bh4 {[%emt 0:00:11]} Nbd7 {[%emt 0:04:27]} 9. a3 {[%emt 0:01:53]} Re8 {[%emt 0:13:13]} 10. Rc1 {[%emt 0:03:14]} a5 {[%emt 0:07:17]} 11. Be2 {[%emt 0:02:27]} b6 {[%emt 0:19:17]} 12. O-O {[%emt 0:07:02]} Bb7 {[%emt 0:01:10]} 13. Rfd1 {[%emt 0:05:00]} Rc8 {[%emt 0:01:41]} 14. Qb3 {[%emt 0:11:57]} g5 {[%emt 0:09:44]} 15. Bg3 {[%emt 0:00:16]} Rf8 {[%emt 0:14:08]} 16. Ne5 {[%emt 0:05:25]} Nxe5 {[%emt 0:07:30]} 17. Bxe5 {[%emt 0:02:55]} Nd7 {[%emt 0:00:55]} 18. Bg3 {[%emt 0:02:23]} f5 {[%emt 0:01:27]} 19. f3 {[%emt 0:00:25]} Kh8 {[%emt 0:01:13]} 20. Bd3 {[%emt 0:01:47]} f4 {[%emt 0:02:12]} 21. Bf2 {[%emt 0:00:41]} fxe3 {[%emt 0:01:17]} 22. Bxe3 {[%emt 0:00:12]} Bd6 {[%emt 0:00:07]} 23. Kh1 {[%emt 0:04:32]} g4 {[%emt 0:02:27]} 24. fxg4 {[%emt 0:04:42]} Qh4 {[%emt 0:00:11]} 25. Bg1 {[%emt 0:00:16]} Nf6 {[%emt 0:02:25]} 26. Be2 {[%emt 0:02:26]} Rg8 {[%emt 0:07:44]} 27. c5 {[%emt 0:04:18]} Bc7 {[%emt 0:01:04]} 28. Rd3 {[%emt 0:02:45]} Qg5 {[%emt 0:01:21]} 29. Qd1 {[%emt 0:09:12]} Ba6 {[%emt 0:00:56]} 30. Rh3 {[%emt 0:01:43]} Bxe2 {[%emt 0:00:17]} 31. Nxe2 {[%emt 0:00:14]} Nxg4 {[%emt 0:00:11]} 32. Ng3 {[%emt 0:01:38]} Rcf8 {[%emt 0:00:28]} 33. cxb6 {[%emt 0:01:16]} Bb8 {[%emt 0:01:13]} 34. Rc2 {[%emt 0:02:48]} Rf7 {[%emt 0:01:03]} 35. Qe2 {[%emt 0:03:18]} Rgf8 {[%emt 0:00:26]} 36. Qe1 {[%emt 0:05:40]} Bf4 {[%emt 0:01:07]} 37. Re2 {[%emt 0:00:28]} e5 {[%emt 0:00:25]} 38. dxe5 {[%emt 0:00:19]} Qg6 {[%emt 0:00:47]} 39. e6 {[%emt 0:00:41]} Re7 {[%emt 0:00:05]} 40. Qc3+ {[%emt 0:02:08]} Kg8 {[%emt 0:00:14]} 41. Qxc6 {[%emt 0:32:12]} Qd3 {[%emt 0:31:13]} 42. Qc2 {[%emt 0:00:55]} Qxc2 {[%emt 0:00:32]} 43. Rxc2 {[%emt 0:00:01]} Rxe6 {[%emt 0:00:00]} 44. Rh4 {[%emt 0:05:11]} Ne3 {[%emt 0:00:59]} 45. Rd2 {[%emt 0:03:39]} Rxb6 {[%emt 0:00:36]} 46. Rxf4 {[%emt 0:01:42]} Rxf4 {[%emt 0:00:00]} 47. Bxe3 {[%emt 0:00:12]} Re6 {[%emt 0:00:01]} 48. Bg1 {[%emt 0:01:03]} Re5 {[%emt 0:00:57]} 49. h3 {[%emt 0:00:15]} Rc4 {[%emt 0:00:48]} 50. Bd4 {[%emt 0:00:35]} Rg5 {[%emt 0:00:30]} 51. Kh2 {[%emt 0:00:30]} Kf7 {[%emt 0:00:17]} 52. Bc3 {[%emt 0:00:28]} a4 {[%emt 0:00:35]} 53. Ne2 {[%emt 0:00:21]} Ke6 {[%emt 0:00:20]} 54. Nd4+ {[%emt 0:00:12]} Kd7 {[%emt 0:00:36]} 55. Rf2 {[%emt 0:00:15]} Rg6 {[%emt 0:00:43]} 56. Rf5 {[%emt 0:01:56]} Rd6 {[%emt 0:00:23]} 57. Rf7+ {[%emt 0:00:20]} Ke8 {[%emt 0:00:08]} 58. Ra7 {[%emt 0:00:22]} Rd7 {[%emt 0:00:33]} 59. Ra6 {[%emt 0:00:15]} Rh7 {[%emt 0:00:35]} 60. Nf5 {[%emt 0:00:44]} Rf4 {[%emt 0:00:48]} 61. Nd6+ {[%emt 0:01:07]} Kf8 {[%emt 0:00:24]} 62. Ra8+ {[%emt 0:00:23]} 1-0

[Event "58th Akiba Rubinstein D 2022"]
[Site "Polanica-Zdroj"]
[Date "2022.08.13"]
[Round "1.7"]
[White "Stachowiak, Bruno"]
[Black "Sola, Wojciech"]
[Result "0-1"]
[ECO "B38"]
[WhiteElo "1462"]
[BlackElo "1780"]
[Annotator "NA RC COMBH"]
[PlyCount "141"]
[EventDate "2022.08.13"]
[EventCountry "POL"]
[SourceTitle "playchess.com"]
[Source "ChessBase"]
[SourceQuality "1"]
[TimeControl "40/5400+30:1800+30"]

1. e4 c5 2. c4 Nc6 3. Ne2 g6 4. d4 cxd4 5. Nxd4 Bg7 6. Be3 Nf6 7. Nc3 d6 8. Be2 O-O 9. Qd2 Nxd4 10. Bxd4 Be6 11. O-O Nd7 12. f4 Bxd4+ 13. Qxd4 Qb6 14. Qxb6 Nxb6 15. b3 f6 16. Nb5 Rfc8 17. Bf3 a6 18. Nd4 Bd7 19. f5 g5 20. h4 h6 21. Kf2 Kf7 22. hxg5 hxg5 23. Bh5+ Kg7 24. Rh1 Rh8 25. Bg6 Rxh1 26. Rxh1 Rh8 27. Rxh8 Kxh8 28. Bf7 Bc6 29. Nxc6 bxc6 30. Be8 c5 31. Kf3 Kg7 32. Kg4 a5 33. Kh5 Kf8 34. Bc6 Kf7 35. Bd5+ Kf8 36. Bc6 Kg7 37. Be8 Na8 38. Bc6 Nc7 39. Bd5 Na6 40. a3 Nb8 41. Kg4 Nd7 42. Kf3 Kh6 43. g4 Ne5+ 44. Kg3 Kg7 45. Be6 Kf8 46. Bc8 Ke8 47. Ba6 Kd7 48. Bb5+ Kc7 49. Kh3 Nf3 50. Kg3 Nd2 51. Ba4 Nxe4+ 52. Kf3 Nc3 53. Ke3 Nxa4 54. bxa4 Kd7 55. Kd3 e6 56. fxe6+ Kxe6 57. Ke4 Ke7 58. Ke3 Ke6 59. Ke4 f5+ 60. gxf5+ Kf6 61. Kd5 Kxf5 62. Kxd6 g4 63. Kxc5 g3 64. Kd6 g2 65. c5 g1=Q 66. c6 Qd4+ 67. Ke7 Qe5+ 68. Kd7 Qd5+ 69. Kc7 Ke6 70. Kb6 Kd6 71. c7 0-1